fUSD/lending_fUSD_20240113
["ID","MTS","AMOUNT","RATE_DAILY","PERIOD"]
[311524943,1705185033564,-151.0,0.00022773,7]
[311524944,1705185033574,-151.0,0.00022773,7]
[311524945,1705185033585,-276.377442,0.00022773,7]
[311524946,1705185033595,-276.377442,0.00022773,7]
[311524947,1705185033605,-161.630999,0.00022773,7]
[311524948,1705185033616,-161.630999,0.00022773,7]
[311524949,1705185033626,-486.159381,0.00022773,7]
[311524950,1705185033637,-486.159381,0.00022773,7]
[311524951,1705185033648,-151.0,0.00022773,7]
[311524952,1705185033660,-151.0,0.00022773,7]
[311524953,1705185033670,-386.199751,0.00022773,7]
[311524954,1705185033681,-386.199751,0.00022773,7]
[311524955,1705185033692,-151.0,0.00022773,7]
[311524956,1705185033701,-151.0,0.00022773,7]
[311524957,1705185033710,-151.0,0.00022773,7]
[311524958,1705185033720,-151.0,0.00022773,7]
[311524959,1705185033730,-151.0,0.00022773,7]
[311524960,1705185033739,-151.0,0.00022773,7]
[311524961,1705185033750,-151.0,0.00022773,7]
[311524962,1705185033760,-151.0,0.00022773,7]
[311524963,1705185033770,-151.0,0.00022773,7]
[311524964,1705185033781,-578.662652,0.00022773,7]
[311524965,1705185033791,-578.662652,0.00022773,7]
[311524966,1705185033800,-578.662652,0.00022773,7]
[311524967,1705185033810,-578.662652,0.00022773,7]
[311524968,1705185033819,-151.0,0.00022773,7]
[311524969,1705185033828,-151.0,0.00022773,7]
[311524970,1705185033838,-151.0,0.00022773,7]
[311524971,1705185033849,-151.0,0.00022773,7]
[311524972,1705185033859,-3928.82337372,0.00022773,2]
[311524973,1705185033869,-1830.0899859,0.00022773,2]
[311524974,1705185033878,-2616.61714692,0.00022773,2]
[311524975,1705185033888,-263.28882088,0.00022773,2]
[311524976,1705185033898,-22049.89584148,0.00022773,2]
[311524977,1705185033908,-215.60720017,0.00022773,2]
[311524978,1705185033918,-214.7697369,0.00022773,2]
[311524979,1705185033927,-155.27826223,0.00022773,2]
[311524980,1705185033936,-2888.71602637,0.00022773,2]
[311524981,1705185033946,-222.78190174,0.00022773,2]
[311524982,1705185033955,-287.48098428,0.00022773,2]
[311524983,1705185033964,-155.0,0.00022773,2]
[311524984,1705185033975,-155.78198566,0.00022773,2]
[311524985,1705185033984,-155.0,0.00022773,2]
[311524986,1705185033994,-196.30617543,0.00022773,2]
[311524987,1705185034005,-284.94387403,0.00022773,2]
[311524988,1705185034015,-265.7489314,0.00022773,2]
[311524989,1705185034025,-355.02113899,0.00022773,2]
[311524990,1705185034034,-161.75613051,0.00022773,2]
[311524991,1705185034044,-235.98748933,0.00022773,2]
[311524992,1705185034053,-236.35688557,0.00022773,2]
[311524993,1705185034064,-579.61035159,0.00022773,2]
[311524994,1705185034074,-622.26865626,0.00022773,2]
[311524995,1705185034089,-3437.45942941,0.00022773,2]
[311524996,1705185034099,-288.51705321,0.00022773,2]
[311524997,1705185034108,-360.54533661,0.00022773,2]
[311524998,1705185034118,-426.27254563,0.00022773,2]
[311524999,1705185034127,-165.2779489,0.00022773,2]
[311525000,1705185034137,-542.3479697,0.00022773,2]
[311525001,1705185034148,-155.0,0.00022773,2]
[311525002,1705185034158,-155.0,0.00022773,2]
[311525003,1705185034167,-349.99116857,0.00022773,2]
[311525004,1705185034176,-155.0,0.00022773,2]
[311525005,1705185034185,-754.79169806,0.00022773,2]
[311525006,1705185034195,-13758.40676925,0.00022773,2]
[311525007,1705185034205,-155.0,0.00022773,2]
[311525008,1705185034215,-4083.26130941,0.00022773,2]
[311525009,1705185034224,-650.81684476,0.00022773,2]
[311525010,1705185034234,-155.0,0.00022773,2]
[311525011,1705185034243,-155.37183511,0.00022773,2]
[311525012,1705185034253,-155.0,0.00022774,2]
[311525013,1705185034262,-213.4225225,0.00022774,2]
[311525014,1705185034271,-1730.54816888,0.00022774,2]
[311525015,1705185034283,-2421.3502037,0.00022774,2]
[311525016,1705185034293,-627.79404955,0.00022775,2]
[311525017,1705185034302,-2189.12236656,0.00022775,2]
[311525018,1705185034311,-311.82193235,0.00022775,2]
[311525019,1705185034325,-150.0,0.00022775,2]
[311525020,1705185034334,-151.0,0.00022775,7]
[311525021,1705185034343,-151.0,0.00022775,7]
[311525022,1705185034353,-588.395099,0.00022775,7]
[311525023,1705185034362,-588.395099,0.00022775,7]
[311525024,1705185034372,-655.10054,0.00022775,7]
[311525025,1705185034382,-655.10054,0.00022775,7]
[311525026,1705185034391,-151.0,0.00022775,7]
[311525027,1705185034401,-222.55474,0.00022775,7]
[311525028,1705185034411,-151.0,0.00022775,7]
[311525029,1705185034420,-151.0,0.00022775,7]
[311525030,1705185034429,-151.0,0.00022775,7]
[311525031,1705185034438,-151.0,0.00022775,7]
[311525032,1705185034447,-151.0,0.00022775,7]
[311525033,1705185034456,-151.0,0.00022775,7]
[311525034,1705185034466,-151.0,0.00022775,7]
[311525035,1705185034475,-242.961092,0.00022775,7]
[311525036,1705185034485,-151.0,0.00022775,7]
[311525037,1705185034495,-151.0,0.00022775,7]
[311525038,1705185034506,-186.384889,0.00022775,7]
[311525039,1705185034516,-186.384889,0.00022775,7]
[311525040,1705185034526,-451.752578,0.00022775,7]
[311525041,1705185034536,-451.752578,0.00022775,7]
[311525042,1705185034546,-151.0,0.00022775,7]
[311525043,1705185034557,-151.0,0.00022775,7]
[311525044,1705185034566,-151.0,0.00022775,7]
[311525045,1705185034575,-276.377442,0.00022775,7]
[311525046,1705185034584,-276.377442,0.00022775,7]
[311525047,1705185034593,-161.630999,0.00022775,7]
[311525048,1705185034602,-161.630999,0.00022775,7]
[311525049,1705185034611,-486.159381,0.00022775,7]
[311525050,1705185034620,-486.159381,0.00022775,7]
[311525051,1705185034629,-151.0,0.00022775,7]
[311525052,1705185034639,-151.0,0.00022775,7]
[311525053,1705185034648,-386.199751,0.00022775,7]
[311525054,1705185034659,-386.199751,0.00022775,7]
[311525055,1705185034668,-151.0,0.00022775,7]
[311525056,1705185034677,-151.0,0.00022776,7]
[311525057,1705185034685,-151.0,0.00022776,7]
[311525058,1705185034694,-151.0,0.00022776,7]
[311525059,1705185034702,-151.0,0.00022776,7]
[311525060,1705185034712,-588.395099,0.00022776,7]
[311525061,1705185034721,-588.395099,0.00022776,7]
[311525062,1705185034730,-588.395099,0.00022776,7]
[311525063,1705185034738,-588.395099,0.00022776,7]
[311525064,1705185034747,-655.10054,0.00022776,7]
[311525065,1705185034755,-655.10054,0.00022776,7]
[311525066,1705185034764,-655.10054,0.00022776,7]
[311525067,1705185034773,-655.10054,0.00022776,7]
[311525068,1705185034782,-151.0,0.00022776,7]
[311525069,1705185034792,-151.0,0.00022776,7]
[311525070,1705185034801,-151.0,0.00022776,7]
[311525071,1705185034810,-151.0,0.00022776,7]
[311525072,1705185034819,-151.0,0.00022776,7]
[311525073,1705185034828,-151.0,0.00022776,7]
[311525074,1705185034837,-151.0,0.00022776,7]
[311525075,1705185034846,-151.0,0.00022776,7]
[311525076,1705185034855,-266.804814,0.00022776,7]
[311525077,1705185034864,-186.384889,0.00022776,7]
[311525078,1705185034873,-186.384889,0.00022776,7]
[311525079,1705185034882,-186.384889,0.00022776,7]
[311525080,1705185034891,-186.384889,0.00022776,7]
[311525081,1705185034900,-451.752578,0.00022776,7]
[311525082,1705185034910,-451.752578,0.00022776,7]
[311525083,1705185034919,-451.752578,0.00022776,7]
[311525084,1705185034928,-451.752578,0.00022776,7]
[311525085,1705185034938,-151.0,0.00022776,7]
[311525086,1705185034947,-151.0,0.00022776,7]
[311525087,1705185034956,-151.0,0.00022776,7]
[311525088,1705185034966,-151.0,0.00022776,7]
[311525089,1705185034975,-276.377442,0.00022776,7]
[311525090,1705185034984,-276.377442,0.00022776,7]
[311525091,1705185034993,-161.630999,0.00022776,7]
[311525092,1705185035002,-161.630999,0.00022776,7]
[311525093,1705185035011,-486.159381,0.00022776,7]
[311525094,1705185035021,-486.159381,0.00022776,7]
[311525095,1705185035030,-151.0,0.00022776,7]
[311525096,1705185035039,-151.0,0.00022776,7]
[311525097,1705185035049,-386.199751,0.00022776,7]
[311525098,1705185035058,-386.199751,0.00022776,7]
[311525099,1705185035069,-151.0,0.00022776,7]
[311525100,1705185035078,-151.0,0.00022776,7]
[311525101,1705185035088,-151.841994,0.00022776,7]
[311525102,1705185035097,-151.0,0.00022776,7]
[311525103,1705185035107,-151.0,0.00022776,7]
[311525104,1705185035116,-578.662652,0.00022776,7]
[311525105,1705185035126,-578.662652,0.00022776,7]
[311525106,1705185035136,-151.0,0.00022776,7]
[311525107,1705185035146,-151.0,0.00022776,7]
[311525108,1705185035155,-1326.45160994,0.00022776,2]
[311525109,1705185035166,-5367.55298994,0.00022776,2]
[311525110,1705185035414,-41690.3425823,0.00022776,2]
[311525111,1705185035424,-150.0,0.00022776,2]
[311525112,1705185035433,-151.0,0.00022777,7]
[311525113,1705185035443,-151.0,0.00022777,7]
[311525114,1705185035453,-151.0,0.00022777,7]
[311525115,1705185035462,-151.0,0.00022777,7]
[311525116,1705185035472,-151.0,0.00022777,7]
[311525117,1705185035481,-151.0,0.00022777,7]
[311525118,1705185035491,-274.849674,0.00022777,7]
[311525119,1705185035500,-578.662652,0.00022777,7]
[311525120,1705185035509,-578.662652,0.00022777,7]
[311525121,1705185035518,-578.662652,0.00022777,7]
[311525122,1705185035528,-578.662652,0.00022777,7]
[311525123,1705185035537,-151.0,0.00022777,7]
[311525124,1705185035546,-151.0,0.00022777,7]
[311525125,1705185035556,-151.0,0.00022777,7]
[311525126,1705185035565,-151.0,0.00022777,7]
[311525127,1705185035574,-730.72,0.00022777,2]
[311525128,1705185035583,-21317.9779999,0.00022777,2]
[311525129,1705185035592,-22948.0494999,0.00022777,2]
[311525130,1705185035602,-22889.5429999,0.00022777,2]
[311525131,1705185035611,-22070.1716666,0.00022777,2]
[311525132,1705185035620,-150.01,0.00022778,2]
[311525133,1705185035629,-3293.04376977,0.00022778,2]
[311525134,1705185035638,-2010.50294159,0.0002278,2]
[311525135,1705185035648,-363.01948562,0.00022787,2]
[311525136,1705185035657,-153.0,0.00022793,2]
[311525137,1705185035667,-153.0,0.00022793,2]
[311525138,1705185035675,-200.0,0.00022815,2]
[311525139,1705185035685,-200.0,0.00022816,2]
[311525140,1705185035694,-200.0,0.00022816,2]
[311525141,1705185035703,-200.0,0.00022816,2]
[311525142,1705185035712,-200.0,0.00022816,2]
[311525143,1705185035721,-154.36,0.00022825,2]
[311525144,1705185035730,-175.61,0.00022836,2]
[311525145,1705185035739,-227.08,0.00022876,2]
[311525146,1705185035748,-1000.0,0.0002288,2]
[311525147,1705185035758,-1000.0,0.0002288,2]
[311525148,1705185035766,-1000.0,0.0002288,2]
[311525149,1705185035776,-1000.0,0.0002288,2]
[311525150,1705185035785,-1000.0,0.0002288,2]
[311525151,1705185035794,-1000.0,0.0002288,2]
[311525152,1705185035804,-585.1049,0.0002288,2]
[311525153,1705185035813,-500.0,0.0002288,2]
[311525154,1705185035822,-500.0,0.0002288,2]
[311525155,1705185035831,-500.0,0.0002288,2]
[311525156,1705185035840,-500.0,0.0002288,2]
[311525157,1705185035849,-500.0,0.0002288,2]
[311525158,1705185035859,-500.0,0.0002288,2]
[311525159,1705185035869,-500.0,0.0002288,2]
[311525160,1705185035878,-500.0,0.0002288,2]
[311525161,1705185035887,-500.0,0.0002288,2]
[311525162,1705185035896,-500.0,0.0002288,2]
[311525163,1705185035906,-500.0,0.0002288,2]
[311525164,1705185035915,-500.0,0.0002288,2]
[311525165,1705185035925,-500.0,0.0002288,2]
[311525166,1705185035934,-154.7978,0.0002288,2]
[311525167,1705185035943,-199.42999346,0.00022884,2]
[311525168,1705185035952,-233.36910929,0.00022884,2]
[311525169,1705185035961,-151.0,0.00022884,7]
[311525170,1705185035971,-5000.0,0.00022884,2]
[311525171,1705185035980,-1235.4593,0.00022884,2]
[311525172,1705185035989,-161.630999,0.00022884,7]
[311525173,1705185035998,-161.630999,0.00022884,7]
[311525174,1705185036007,-486.159381,0.00022884,7]
[311525175,1705185036016,-486.159381,0.00022884,7]
[311525176,1705185036025,-151.0,0.00022884,7]
[311525177,1705185036035,-151.0,0.00022884,7]
[311525178,1705185036044,-386.199751,0.00022884,7]
[311525179,1705185036053,-386.199751,0.00022884,7]
[311525180,1705185036063,-151.0,0.00022885,7]
[311525181,1705185036071,-151.0,0.00022885,7]
[311525182,1705185036081,-151.0,0.00022885,7]
[311525183,1705185036090,-317.823804,0.00022885,2]
[311525184,1705185036098,-317.823804,0.00022885,2]
[311525185,1705185036108,-151.0,0.00022885,7]
[311525186,1705185036117,-180.677345,0.00022885,7]
[311525187,1705185036127,-588.395099,0.00022885,7]
[311525188,1705185036136,-588.395099,0.00022885,7]
[311525189,1705185036146,-655.10054,0.00022885,7]
[311525190,1705185036155,-655.10054,0.00022885,7]
[311525191,1705185036165,-151.0,0.00022885,7]
[311525192,1705185036173,-151.0,0.00022885,7]
[311525193,1705185036182,-151.0,0.00022885,7]
[311525194,1705185036192,-151.0,0.00022885,7]
[311525195,1705185036201,-151.0,0.00022885,7]
[311525196,1705185036211,-276.377442,0.00022885,7]
[311525197,1705185036220,-276.377442,0.00022885,7]
[311525198,1705185036230,-151.0,0.00022885,7]
[311525199,1705185036239,-151.0,0.00022885,7]
[311525200,1705185036249,-578.662652,0.00022885,7]
[311525201,1705185036258,-578.662652,0.00022885,7]
[311525202,1705185036267,-151.0,0.00022885,7]
[311525203,1705185036277,-151.0,0.00022885,7]
[311525204,1705185036286,-151.0,0.00022886,7]
[311525205,1705185036296,-186.384889,0.00022886,7]
[311525206,1705185036305,-186.384889,0.00022886,7]
[311525207,1705185036314,-451.752578,0.00022886,7]
[311525208,1705185036325,-451.752578,0.00022886,7]
[311525209,1705185036334,-151.0,0.00022886,7]
[311525210,1705185036344,-233.36910928,0.00022892,2]
[311525211,1705185036353,-202.48653456,0.00022892,2]
[311525212,1705185036362,-386.61135731,0.00022892,2]
[311525213,1705185036371,-11716.24750146,0.000229,2]
[311525214,1705185036380,-151.0,0.000229,7]
[311525215,1705185036390,-833.05856262,0.000229,2]
[311525216,1705185036399,-305.63921187,0.000229,2]
[311525217,1705185036409,-233.36910928,0.000229,2]
[311525218,1705185036418,-165.19525943,0.000229,2]
[311525219,1705185036427,-363.01948562,0.000229,2]
[311525220,1705185036436,-246.77663563,0.000229,2]
[311525221,1705185036445,-156.56,0.0002291,2]
[311525222,1705185036454,-154.36,0.00022912,2]
[311525223,1705185036464,-399.12961254,0.0002293,3]
[311525224,1705185036473,-151.0,0.0002293,7]
[311525225,1705185036482,-151.0,0.0002293,7]
[311525226,1705185036491,-151.0,0.0002293,7]
[311525227,1705185036500,-317.823804,0.0002293,2]
[311525228,1705185036509,-317.823804,0.0002293,2]
[311525229,1705185036519,-215.35384188,0.00022969,2]
[311525230,1705185036528,-151.0,0.00022984,7]
[311525231,1705185036537,-21831.1887333,0.00022984,2]
[311525232,1705185036547,-6917.08554935,0.00022984,2]
[311525233,1705185036561,-12404.79392895,0.00022984,2]
[311525234,1705185036570,-21924.4534666,0.00022984,2]
[311525235,1705185036579,-22769.8297,0.00022984,2]
[311525236,1705185036589,-22734.7258,0.00022984,2]
[311525237,1705185036598,-6468.8264503,0.00022984,2]
[311525238,1705185036607,-2521.336155,0.00022984,2]
[311525239,1705185036619,-279.69657276,0.00022984,2]
[311525240,1705185036643,-19097.73693884,0.00022984,2]
[311525241,1705185036652,-211.6393,0.00022984,7]
[311525242,1705185036662,-151.0,0.00022984,7]
[311525243,1705185036671,-151.0,0.00022984,7]
[311525244,1705185036680,-151.0,0.00022984,7]
[311525245,1705185036691,-151.0,0.00022984,7]
[311525246,1705185036700,-151.0,0.00022984,7]
[311525247,1705185036710,-201.6,0.00022984,7]
[311525248,1705185036719,-317.823804,0.00022984,2]
[311525249,1705185036728,-317.823804,0.00022984,2]
[311525250,1705185036738,-317.823804,0.00022984,2]
[311525251,1705185036747,-317.823804,0.00022984,2]
[311525252,1705185036756,-151.0,0.00022984,7]
[311525253,1705185036765,-151.0,0.00022984,7]
[311525254,1705185036774,-151.0,0.00022984,7]
[311525255,1705185036784,-151.0,0.00022984,7]
[311525256,1705185036794,-588.395099,0.00022984,7]
[311525257,1705185036806,-299.31082222,0.00022984,7]
[311525258,1705185036820,-289.08427678,0.00022984,7]
[311525259,1705185036829,-260.91572322,0.00022984,7]
[311525260,1705185036841,-327.47937578,0.00022984,7]
[311525261,1705185036851,-588.395099,0.00022984,7]
[311525262,1705185036861,-588.395099,0.00022984,7]
[311525263,1705185036871,-588.395099,0.00022984,7]
[311525264,1705185036881,-588.395099,0.00022984,7]
[311525265,1705185036890,-588.395099,0.00022984,7]
[311525266,1705185036899,-655.10054,0.00022984,7]
[311525267,1705185036908,-655.10054,0.00022984,7]
[311525268,1705185036919,-540.67234004,0.00022984,7]
[311525269,1705185036939,-114.42819996,0.00022984,7]
[311525270,1705185036948,-655.10054,0.00022984,7]
[311525271,1705185036958,-526.35185604,0.00022984,7]
[311525284,1705185038195,-128.74868396,0.00022984,7]
[311525285,1705185038204,-655.10054,0.00022984,7]
[311525286,1705185038214,-655.10054,0.00022984,7]
[311525287,1705185038225,-655.10054,0.00022984,7]
[311525288,1705185038235,-151.0,0.00022984,7]
[311525289,1705185038245,-151.0,0.00022984,7]
[311525290,1705185038255,-103.94969604,0.00022984,7]
[311525291,1705185038268,-47.05030396,0.00022984,7]
[311525292,1705185038279,-151.0,0.00022984,7]
[311525293,1705185038289,-194.073408,0.00022984,7]
[311525294,1705185038299,-151.0,0.00022984,7]
[311525295,1705185038309,-151.0,0.00022984,7]
[311525296,1705185038318,-151.0,0.00022984,7]
[311525297,1705185038329,-151.0,0.00022984,7]
[311525298,1705185038340,-151.0,0.00022984,7]
[311525299,1705185038348,-186.384889,0.00022984,7]
[311525300,1705185038358,-186.384889,0.00022984,7]
[311525301,1705185038367,-186.384889,0.00022984,7]
[311525302,1705185038377,-186.384889,0.00022984,7]
[311525303,1705185038386,-408.52993204,0.00022984,7]
[311525304,1705185038410,-43.22264596,0.00022984,7]
[311525305,1705185038419,-451.752578,0.00022984,7]
[311525306,1705185038428,-416.62325738,0.00022984,7]
[311525307,1705185038978,-35.12932062,0.00022984,7]
[311525308,1705185038989,-451.752578,0.00022984,7]
[311525309,1705185038998,-151.0,0.00022984,7]
[311525310,1705185039007,-151.0,0.00022984,7]
[311525311,1705185039016,-151.0,0.00022984,7]
[311525312,1705185039026,-151.0,0.00022984,7]
[311525313,1705185039034,-276.377442,0.00022984,7]
[311525314,1705185039044,-276.377442,0.00022984,7]
[311525315,1705185039054,-276.377442,0.00022984,7]
[311525316,1705185039063,-276.377442,0.00022984,7]
[311525317,1705185039072,-161.630999,0.00022984,7]
[311525318,1705185039082,-161.630999,0.00022984,7]
[311525319,1705185039091,-161.630999,0.00022984,7]
[311525320,1705185039100,-161.630999,0.00022984,7]
[311525321,1705185039110,-161.630999,0.00022984,7]
[311525322,1705185039119,-161.630999,0.00022984,7]
[311525323,1705185039129,-486.159381,0.00022984,7]
[311525324,1705185039138,-486.159381,0.00022984,7]
[311525325,1705185039147,-486.159381,0.00022984,7]
[311525326,1705185039156,-486.159381,0.00022984,7]
[311525327,1705185039166,-486.159381,0.00022984,7]
[311525328,1705185039175,-486.159381,0.00022984,7]
[311525329,1705185039184,-204.805093,0.00022984,7]
[311525331,1705185039193,-151.0,0.00022984,7]
[311525333,1705185039202,-132.16366201,0.00022984,7]
[311525502,1705185040656,-18.83633799,0.00022984,7]
[311525505,1705185040666,-151.0,0.00022984,7]
[311525508,1705185040675,-386.199751,0.00022984,7]
[311525511,1705185040684,-386.199751,0.00022984,7]
[311525514,1705185040693,-386.199751,0.00022984,7]
[311525517,1705185040702,-386.199751,0.00022984,7]
[311525520,1705185040711,-386.199751,0.00022984,7]
[311525523,1705185040719,-386.199751,0.00022984,7]
[311525527,1705185040729,-151.0,0.00022984,7]
[311525530,1705185040739,-151.0,0.00022984,7]
[311525533,1705185040747,-273.166525,0.00022984,7]
[311525535,1705185040756,-151.0,0.00022984,7]
[311525538,1705185040765,-151.0,0.00022984,7]
[311525541,1705185040774,-151.0,0.00022984,7]
[311525544,1705185040783,-151.0,0.00022984,7]
[311525547,1705185040792,-151.0,0.00022984,7]
[311525550,1705185040801,-151.0,0.00022984,7]
[311525553,1705185040810,-578.662652,0.00022984,7]
[311525556,1705185040819,-578.662652,0.00022984,7]
[311525559,1705185040828,-578.662652,0.00022984,7]
[311525562,1705185040837,-578.662652,0.00022984,7]
[311525565,1705185040846,-578.662652,0.00022984,7]
[311525567,1705185040855,-578.662648,0.00022984,7]
[311525570,1705185040864,-151.0,0.00022984,7]
[311525573,1705185040873,-151.0,0.00022984,7]
[311525576,1705185040883,-151.0,0.00022984,7]
[311525579,1705185040892,-155.19353,0.00022984,7]
[311525582,1705185040901,-153.0,0.00022984,2]
[311525586,1705185040911,-821.26413412,0.00022985,2]
[311525589,1705185040920,-151.0,0.00022986,7]
[311525592,1705185040931,-151.0,0.00022986,7]
[311525594,1705185040941,-317.823804,0.00022986,2]
[311525597,1705185040950,-317.823804,0.00022986,2]
[311525602,1705185040960,-151.0,0.00022986,7]
[311525604,1705185040969,-151.0,0.00022986,7]
[311525606,1705185040978,-588.395099,0.00022986,7]
[311525608,1705185040988,-588.395099,0.00022986,7]
[311525610,1705185040997,-588.395099,0.00022986,7]
[311525612,1705185041006,-588.395106,0.00022986,7]
[311525614,1705185041015,-655.10054,0.00022986,7]
[311525616,1705185041024,-655.10054,0.00022986,7]
[311525618,1705185041033,-655.10054,0.00022986,7]
[311525620,1705185041043,-655.100533,0.00022986,7]
[311525622,1705185041052,-151.0,0.00022986,7]
[311525624,1705185041061,-151.0,0.00022986,7]
[311525626,1705185041070,-17049.0,0.00022986,2]
[311525628,1705185041079,-151.0,0.00022986,7]
[311525630,1705185041087,-151.0,0.00022986,7]
[311525632,1705185041096,-186.384889,0.00022986,7]
[311525634,1705185041105,-186.384889,0.00022986,7]
[311525636,1705185041114,-186.384889,0.00022986,7]
[311525638,1705185041123,-186.384889,0.00022986,7]
[311525640,1705185041131,-451.752578,0.00022986,7]
[311525642,1705185041140,-451.752578,0.00022986,7]
[311525643,1705185041149,-451.752578,0.00022986,7]
[311525646,1705185041159,-451.752578,0.00022986,7]
[311525647,1705185041168,-151.0,0.00022986,7]
[311525649,1705185041177,-151.0,0.00022986,7]
[311525652,1705185041187,-276.377442,0.00022986,7]
[311525653,1705185041196,-276.377442,0.00022986,7]
[311525655,1705185041205,-161.630999,0.00022986,7]
[311525658,1705185041214,-161.630996,0.00022986,7]
[311525660,1705185041223,-486.159381,0.00022986,7]
[311525662,1705185041232,-486.159378,0.00022986,7]
[311525663,1705185041241,-151.0,0.00022986,7]
[311525665,1705185041251,-386.199751,0.00022986,7]
[311525667,1705185041260,-386.199755,0.00022986,7]
[311525669,1705185041269,-40588.0,0.00022986,2]
[311525671,1705185041279,-1414.0,0.00022991,2]
[311525674,1705185041289,-227.08,0.00022991,2]
[311525675,1705185041301,-2612.10639643,0.00022992,2]
[311525677,1705185041310,-522.36940647,0.00022992,2]
[311525679,1705185041320,-696.21438607,0.00022992,2]
[311525681,1705185041330,-1174.57417902,0.00022992,2]
[311525683,1705185041344,-599.27979208,0.00022992,2]
[311525684,1705185041352,-593.01633068,0.00022992,2]
[311525686,1705185041362,-151.0,0.00022992,7]
[311525688,1705185041371,-151.0,0.00022992,7]
[311525690,1705185041380,-317.823804,0.00022992,2]
[311525691,1705185041390,-317.823804,0.00022992,2]
[311525693,1705185041399,-342.28547052,0.00022994,10]
[311525695,1705185041408,-736.79,0.00022994,2]
[311525697,1705185041418,-151.0,0.00022999,7]
[311525699,1705185041427,-180.747994,0.00022999,7]
[311525701,1705185041436,-276.377442,0.00022999,7]
[311525703,1705185041446,-276.377442,0.00022999,7]
[311525705,1705185041455,-1042.77002253,0.00022999,2]
[311525707,1705185041464,-150.0,0.00022999,2]
[311525708,1705185041473,-150.0,0.00022999,2]
[311525710,1705185041481,-151.0,0.00023,7]
[311525712,1705185041490,-151.0,0.00023,7]
[311525714,1705185041499,-317.823804,0.00023,2]
[311525715,1705185041508,-317.823804,0.00023,2]
[311525717,1705185041517,-151.0,0.00023,7]
[311525719,1705185041525,-186.384889,0.00023,7]
[311525721,1705185041534,-186.384895,0.00023,7]
[311525723,1705185041543,-451.752578,0.00023,7]
[311525725,1705185041553,-451.752582,0.00023,7]
[311525727,1705185041562,-151.0,0.00023,7]
[311525728,1705185041571,-276.377442,0.00023,7]
[311525730,1705185041580,-276.377436,0.00023,7]
[311525732,1705185041589,-153.0,0.00023,2]
[311525734,1705185041599,-153.0,0.00023,2]
[311525736,1705185041608,-153.0,0.00023,2]
[311525738,1705185041616,-2404.53621103,0.00023,2]
[311525742,1705185041652,-7110.9018259,0.00023,2]
[311525744,1705185041664,-93432.48935294,0.00023,2]
[311525746,1705185041675,-762.62720887,0.00023,2]
[311525749,1705185041686,-9168.51,0.00023,2]
[311525782,1705185043014,-150.01,0.00022983,2]
[311525784,1705185043024,-3293.04376977,0.00022983,2]
[311525786,1705185043033,-2974.81623042,0.00023,2]
[311525789,1705185043070,-5793.40959966,0.00023,2]
[311525790,1705185043179,-965.2600237,0.00023,2]
[311525791,1705185043190,-37622.29816522,0.00023,2]
[311525792,1705185043237,-2766.39563642,0.00023,2]
[311525793,1705185043249,-386.96454,0.00023,2]
[311525794,1705185043293,-2516.41547774,0.00023,2]
[311525795,1705185043305,-1388.38523422,0.00023,2]
[311525821,1705185044221,155.0,0.00021616,2]
[311525824,1705185046126,-399.61313833,0.00023,2]
[311525825,1705185046179,-174985.05368405,0.00023,2]
[311525826,1705185046191,-8777.6194879,0.00023,2]